Cogmind - Beta 10.2 @@@ ROGUE MODE // 2021.04.03 @ 12:18:05 Player: ChromeKnight Result: Self-destructed Performance ------------- Evolutions (2) 1000 Regions Visited (5) 1000 Robots Destroyed (32) 160 Value Destroyed (883) 883 Prototype IDs (25) 500 Alien Tech Used (0) 0 Bonus (345) 345 TOTAL SCORE: 3888 Bonus ------- High Alert Combat Kills 45 Aligned with FarCom 300 Cogmind --------- Core Integrity 471/550 Matter 276/300 Energy 280/280 System Corruption 0% Temperature Cool (0) Movement Hovering (176) Ox2 Location -8/Materials Parts ------- > --- POWER (2) -------- Cooled Ion Engine > --- PROPULSION (3) --- Airjet Airjet > --- UTILITY (4) ------ Large Storage Unit Trap Reconfigurator Thief Drone Bay (2/3) > --- WEAPON (2) ------- YOLO Cannon > --- INVENTORY (10) --- Airjet Improved Heat Sink Supersonic Drone Bay (1/1) Flak Cannon Rocket Launcher Rocket Launcher Improved Grenade Launcher Peak State ------------ > --- POWER ------------ Cooled Ion Engine Cooled Ion Engine > --- PROPULSION ------- Light Treads Light Treads Light Treads > --- UTILITY ---------- Large Storage Unit Compact Battery Trap Reconfigurator Thief Drone Bay > --- WEAPON ----------- YOLO Cannon > --- INVENTORY -------- Light Ion Engine Titanium Leg Recoil Stabilizer Supersonic Drone Bay Flak Cannon Rocket Launcher Rocket Launcher Improved Grenade Launcher [Rating: 51] Favorites ----------- Power Light Ion Engine Engine Light Ion Engine Propulsion Compact Wheel Treads Light Treads Wheel Compact Wheel Hover Unit Airjet Utility Thief Drone Bay Device Thief Drone Bay Storage Small Storage Unit Weapon Assault Rifle Energy Cannon YOLO Cannon Ballistic Gun Assault Rifle Build | -11 -10 -10 -10 -9 -8 ------- Run | Scr Mat Min Exi Min Mat Slots Evolved 4 | . . . . . 4 Power 1 | . . . . . 1 Propulsion 1 | . . . . . 1 Utility 2 | . . . . . 2 Weapon . | . . . . . . Parts Attached 24 | 6 . 2 1 1 14 Power 4 | 1 . . . . 3 Engine 4 | 1 . . . . 3 Core . | . . . . . . Reactor . | . . . . . . Propulsion 8 | 2 . . . . 6 Treads 3 | . . . . . 3 Leg . | . . . . . . Wheel 2 | 2 . . . . . Hover 3 | . . . . . 3 Flight . | . . . . . . Utility 8 | 1 . 2 1 . 4 Device 4 | . . 2 . . 2 Storage 4 | 1 . . 1 . 2 Processor . | . . . . . . Hackware . | . . . . . . Protection . | . . . . . . Artifact . | . . . . . . Weapon 4 | 2 . . . 1 1 Energy Gun . | . . . . . . Energy Cannon 2 | . . . . 1 1 Ballistic Gun 2 | 2 . . . . . Ballistic Cannon . | . . . . . . Launcher . | . . . . . . Special Weapon . | . . . . . . Impact Weapon . | . . . . . . Slashing Weapon . | . . . . . . Piercing Weapon . | . . . . . . Special Melee Weapon . | . . . . . . Unidentified Prototypes 2 | . . 1 . . 1 Parts Lost 4 | . . . . 1 3 Power 1 | . . . . . 1 Propulsion 3 | . . . . 1 2 Utility . | . . . . . . Weapon . | . . . . . . Highest Loss Streak 2 | . . . . 1 2 Average Slot Usage (%) 77 | . 85 86 100 71 65 Engine 13 | . 14 14 14 14 13 Treads 2 | . . . . . 5 Wheel 16 | . 28 28 28 14 2 Hover 3 | . . . . . 8 Device 10 | . . 1 14 14 15 Storage 13 | . 14 14 14 14 13 Energy Cannon 4 | . . . . 14 7 Ballistic Gun 13 | . 28 28 28 . . Naked Turns . | . . . . . . Heaviest Build 58 | 11 11 15 43 57 58 Greatest Support 60 | 32 32 32 32 32 60 Greatest Overweight (x) 14 | . . . 1 3 14 Average Overweight (x) . | . . . . 2 1 Largest Inventory Capacity 18 | 6 6 6 12 12 18 Average Capacity 8 | 5 6 6 6 12 10 Most Carried 10 | 1 5 6 6 6 10 Average Carried 5 | . 4 5 5 4 6 Final Capacity 12 | 6 6 6 12 12 10 Final Carried 7 | 1 5 5 6 4 7 Class Distribution -------------------- 100% | Mutant Dominant Class ---------------- Mutant | -10/Materials Mutant | -10/Mines Mutant | -10/Exiles Mutant | -9/Mines Mutant | -8/Materials Resources | -11 -10 -10 -10 -9 -8 ----------- Run | Scr Mat Min Exi Min Mat Matter Collected 492 | 164 . 192 . 30 106 Remotely . | . . . . . . Salvage Created 1027 | . . 211 . 37 779 Parts 57 | . . 10 . 6 41 Haulers Intercepted 1 | . . . . . 1 Recyclers Shooed 1 | . . 1 . . . Parts Field Recycled . | . . . . . . Retrieved Matter . | . . . . . . Parts Self-Destructed . | . . . . . . Prevented . | . . . . . . Kills | -11 -10 -10 -10 -9 -8 ------- Run | Scr Mat Min Exi Min Mat Combat Hostiles Destroyed 25 | . . 4 . 7 14 Guns 4 | . . 4 . . . Cannons 5 | . . . . 1 4 AOE 16 | . . . . 6 10 Classes Destroyed 7 | . . 1 . 1 5 Builder 2 | . . . . . 2 Hauler 1 | . . . . . 1 Recycler 2 | . . . . . 2 Watcher 2 | . . . . . 2 Swarmer 11 | . . . . 7 4 Grunt 11 | . . 4 . . 7 Sentry 3 | . . . . . 3 Best Kill Streak 7 | . . 2 . 4 7 Combat Bots Only 6 | . . 2 . 4 6 Max Kills in Single Turn 4 | . . 1 . 3 4 Gunslinging . | . . . . . . Exploded 4 | . . . . 2 4 Melee . | . . . . . . Uniques/NPCs Destroyed . | . . . . . . Combat | -11 -10 -10 -10 -9 -8 -------- Run | Scr Mat Min Exi Min Mat Damage Taken 1000 | . 10 252 . 126 612 Core 173 | . . 64 . 30 79 Absorbed by Shields . | . . . . . . Core Remaining (%) 81 | 100 . . . 62 . Volleys Fired 35 | . . 16 . 4 15 Largest 2 | . . 2 . 1 1 Hottest 100 | . . 40 . 100 100 Shots Fired 51 | . . 32 . 4 15 Gun 32 | . . 32 . . . Cannon 19 | . . . . 4 15 Launcher . | . . . . . . Special . | . . . . . . Kinetic 32 | . . 32 . . . Thermal 19 | . . . . 4 15 Explosive . | . . . . . . Electromagnetic . | . . . . . . Robot Hit Streak 5 | . . 5 . 1 2 Robot Miss Streak 3 | . . 3 . 3 2 Penetration Max . | . . . . . . Secondary Targets . | . . . . . . Shots Hit Robots 25 | . . 18 . 1 6 Core Hits 38 | . . 8 . 7 23 Critical Hits 4 | . . 1 . . 3 Critical Kills 1 | . . 1 . . . Critical Parts Destroyed 3 | . . . . . 3 Melee Attacks . | . . . . . . Impact . | . . . . . . Slashing . | . . . . . . Piercing . | . . . . . . Sneak Attacks . | . . . . . . Combat Hostiles . | . . . . . . Follow-up Attacks . | . . . . . . Damage Inflicted 3826 | . . 245 . 708 2873 Guns 245 | . . 245 . . . Cannons 1104 | . . . . 171 933 Explosions 2477 | . . . . 537 1940 Melee . | . . . . . . Ramming . | . . . . . . Kinetic 245 | . . 245 . . . Thermal 3581 | . . . . 708 2873 Explosive . | . . . . . . Electromagnetic . | . . . . . . Impact . | . . . . . . Slashing . | . . . . . . Piercing . | . . . . . . Highest Corruption . | . . . . . . Average Corruption . | . . . . . . Corruption Purged . | . . . . . . Overload Shots . | . . . . . . Overflow Damage 282 | . . . . 103 179 Projectiles 76 | . . . . 41 35 Explosions 206 | . . . . 62 144 Melee . | . . . . . . Knockbacks . | . . . . . . Impact . | . . . . . . Kinetic . | . . . . . . Secondary . | . . . . . . Self-Inflicted Damage 261 | . . . . 48 213 Shots 4 | . . . . 1 3 Rammed . | . . . . . . Targets Rammed . | . . . . . . Kicked . | . . . . . . Crushed . | . . . . . . Highest Temperature 73 | . . 11 . 60 73 Average Temperature 26 | . . 4 . 31 31 Received Heat Transfer 309 | . 6 141 . . 162 Siege Activations . | . . . . . . Robots Corrupted . | . . . . . . Combat Hostiles . | . . . . . . Parts Fried . | . . . . . . Impact Corruptions . | . . . . . . Robots Melted . | . . . . . . Combat Hostiles . | . . . . . . Parts Melted 4 | . . . . 1 3 Heat Transferred 3360 | . . . . 560 2800 Parts Sabotaged . | . . . . . . Parts Stolen . | . . . . . . Parts Stripped . | . . . . . . Power Chain Reactions . | . . . . . . Missiles Intercepted . | . . . . . . Alert | -11 -10 -10 -10 -9 -8 ------- Run | Scr Mat Min Exi Min Mat Peak Influence 508 | . 15 105 . 150 508 Initial 58 | . . 5 . . 58 Average 146 | . 14 32 . 137 263 Maximum Alert Level 2 | . . . . . 2 Low Security (%) 69 | 100 100 100 . 100 28 Level 1 25 | . . . . . 58 Level 2 5 | . . . . . 12 Level 3 . | . . . . . . Level 4 . | . . . . . . Level 5 . | . . . . . . High Security . | . . . . . . Max Security . | . . . . . . Squads Dispatched 3 | . 1 . . . 2 Investigation 1 | . . . . . 1 Extermination . | . . . . . . Reinforcement 2 | . 1 . . . 1 Assault . | . . . . . . Garrison . | . . . . . . Intercept . | . . . . . . Construction Impeded . | . . . . . . Haulers Reinforced . | . . . . . . Stealth | -11 -10 -10 -10 -9 -8 --------- Run | Scr Mat Min Exi Min Mat Distress Signals 1 | . . . . . 1 Communications Jammed . | . . . . . . Distress Signals . | . . . . . . Times Spotted 31 | . 2 4 . 7 18 Peak Tracking Total 6 | . 1 2 . 4 6 Tactical Retreats 2 | . . . . . 2 Traps | -11 -10 -10 -10 -9 -8 ------- Run | Scr Mat Min Exi Min Mat Traps Triggered 1 | . . . . . 1 Indirectly . | . . . . . . Trap Hack Attempts . | . . . . . . Triggered . | . . . . . . Disarmed . | . . . . . . Reprogrammed . | . . . . . . Reused . | . . . . . . Traps Extracted . | . . . . . . Installed . | . . . . . . Triggered . | . . . . . . Machines | -11 -10 -10 -10 -9 -8 ---------- Run | Scr Mat Min Exi Min Mat Machines Disabled 7 | . . . . . 7 Max in Single Turn 2 | . . . . . 2 Machines Sabotaged . | . . . . . . Garrisons Compromised . | . . . . . . Overloaded Fab Kills . | . . . . . . Fab Network Shutdowns . | . . . . . . Hacking | -11 -10 -10 -10 -9 -8 --------- Run | Scr Mat Min Exi Min Mat Machines Accessed 3 | . 1 1 1 . . Terminals 1 | . 1 . . . . Fabricators . | . . . . . . Repair Stations . | . . . . . . Recycling Units . | . . . . . . Scanalyzers . | . . . . . . Garrison Access . | . . . . . . Total Hacks 3 | . 1 1 1 . . Successful 3 | . 1 1 1 . . Failed . | . . . . . . Catastrophic . | . . . . . . Database Lockouts . | . . . . . . Manual 1 | . . . 1 . . Terminals 1 | . 1 . . . . Fabricators . | . . . . . . Repair Stations . | . . . . . . Recycling Units . | . . . . . . Scanalyzers . | . . . . . . Garrison Access . | . . . . . . Terminal Hacks 3 | . 1 1 1 . . Open Door 1 | . . 1 . . . Zone Layout 1 | . 1 . . . . EX-Prototype ID Bank 1 | . . . 1 . . Fabricator Hacks . | . . . . . . Repair Station Hacks . | . . . . . . Recycling Unit Hacks . | . . . . . . Scanalyzer . | . . . . . . Garrison Access Hacks . | . . . . . . Unauthorized Hacks . | . . . . . . Terminals . | . . . . . . Fabricators . | . . . . . . Repair Stations . | . . . . . . Recycling Units . | . . . . . . Scanalyzers . | . . . . . . Garrison Access . | . . . . . . Data Cores Recovered . | . . . . . . Used . | . . . . . . Hacking Detections 1 | . 1 . . . . Full Trace Events . | . . . . . . Feedback Events . | . . . . . . Feedback Blocked . | . . . . . . Robot Schematics Acquired . | . . . . . . Robots Built . | . . . . . . Matter . | . . . . . . Time . | . . . . . . Total Robot Build Rating . | . . . . . . Part Schematics Acquired . | . . . . . . Parts Built . | . . . . . . Matter . | . . . . . . Time . | . . . . . . Total Part Build Rating . | . . . . . . Parts Repaired . | . . . . . . Time . | . . . . . . Parts Recycled . | . . . . . . Recycled Matter . | . . . . . . Retrieved Matter . | . . . . . . Retrieved Components . | . . . . . . Parts Scanalyzed . | . . . . . . Part Schematics Acquired . | . . . . . . Parts Damaged . | . . . . . . Bothacking | -11 -10 -10 -10 -9 -8 ------------ Run | Scr Mat Min Exi Min Mat Used RIF Installer . | . . . . . . Robots Hacked . | . . . . . . Non-combat . | . . . . . . Combat . | . . . . . . Robot Hacks Applied . | . . . . . . Relay Couplers Released . | . . . . . . Robots Rewired . | . . . . . . Allies Hacked . | . . . . . . Hacks Repelled . | . . . . . . Allies | -11 -10 -10 -10 -9 -8 -------- Run | Scr Mat Min Exi Min Mat Total Allies . | . . . . . . Largest Group . | . . . . . . Highest-Rated Group . | . . . . . . Highest-Rated Ally . | . . . . . . Total Orders 4 | . . 2 . . 2 EXPLORE 2 | . . 1 . . 1 RETURN 2 | . . 1 . . 1 Ally Attacks 4 | . . . . . 4 Total Damage 34 | . . . . . 34 Kills . | . . . . . . Allies Corrupted . | . . . . . . Allies Melted . | . . . . . . Intel | -11 -10 -10 -10 -9 -8 ------- Run | Scr Mat Min Exi Min Mat Robot Analysis Total . | . . . . . . Derelict Logs Recovered 1 | . . 1 . . . Drone Launches 4 | . . 1 . . 3 Drone Recoveries 3 | . . 1 . . 2 Exploration | -11 -10 -10 -10 -9 -8 ------------- Run | Scr Mat Min Exi Min Mat Turns Passed 2138 | 41 102 632 258 293 812 Spaces Moved 1394 | 32 99 553 250 198 262 Core 9 | 1 . . . . 8 Treads 110 | . . . . . 110 Legs . | . . . . . . Wheels 1204 | 31 99 553 250 198 73 Hover 71 | . . . . . 71 Flight . | . . . . . . Fastest Speed 50 | 50 100 100 100 110 112 Average Speed 117 | 98 100 100 101 129 171 Slowest Speed 750 | 100 100 100 110 130 750 Overloaded Moves . | . . . . . . Propulsion Burnouts . | . . . . . . Robots Hopped . | . . . . . . Cave-ins Triggered . | . . . . . . Exploration Rate (%) 49 | 3 24 99 60 64 44 Regions Visited 5 Branch Regions 3 Pre-discovered Areas 1 | . . 1 . . . Known Exits Taken . | . . . . . . Unknown Exits Taken 5 | 1 1 1 1 1 . Scrap Searched 2 | . . 1 . 1 . Spaces Dug 7 | . . . . . 7 Terrain Destroyed 191 | . . . . 61 130 Melee . | . . . . . . Projectile 6 | . . . . 2 4 AOE 185 | . . . . 59 126 Terrain Rammed . | . . . . . . Walls Destroyed . | . . . . . . Machines Disabled . | . . . . . . Actions | -11 -10 -10 -10 -9 -8 --------- Run | Scr Mat Min Exi Min Mat Total 1800 | 38 102 600 257 223 580 Wait 319 | . . 27 . 19 273 Move 1389 | 31 98 552 249 197 262 Hop . | . . . . . . Pick Up 15 | 1 4 1 3 . 6 Fast Attach 16 | 6 . 1 . . 9 Attach 5 | . . 1 . 1 3 Detach 3 | . . 1 . . 2 Swap 3 | . . . 1 . 2 Drop 15 | . . 1 4 2 8 Fire 35 | . . 16 . 4 15 Melee . | . . . . . . Ram . | . . . . . . Kick . | . . . . . . Crush . | . . . . . . Escape Stasis . | . . . . . . Rewire . | . . . . . . Trap . | . . . . . . Miscellaneous . | . . . . . . Route ------- -11/Scrapyard -10/Materials -10/Mines (discovered 3 exits: [*Mat x2] / *Exi) -10/Exiles -9/Mines -8/Materials (discovered 1 exit: [*Fac]) History --------- Turn | Location | Event 12 | -11/Scrapyard | Discovered new exit (range 15) 42 | -11/Scrapyard | Entered Materials 121 | -10/Materials | Discovered new exit (range 11) 144 | -10/Materials | Entered Mines 153 | -10/Mines | Met a Derelict bent on vengeance 241 | -10/Mines | Learned Materials garrison access intel 311 | -10/Mines | Build established: Mutant 319 | -10/Mines | Learned location of Storage (-8) 437 | -10/Mines | Received a Rocket Launcher from a helpful Derelict 573 | -10/Mines | Discovered new exit (range 5) 600 | -10/Mines | Discovered new exit (range 4) 610 | -10/Mines | Found the Drone Emporium 616 | -10/Mines | Found Prototype Device 616 | -10/Mines | Identified Thief Drone Bay 772 | -10/Mines | Deemed a non-threat by the Exiles lab entrance 772 | -10/Mines | Discovered new exit (range 5) 776 | -10/Mines | Entered Exiles 799 | -10/Exiles | Met 8R-AWN 818 | -10/Exiles | Met EX-HEX 844 | -10/Exiles | Met EX-BIN 875 | -10/Exiles | Aligned with FarCom system 876 | -10/Exiles | Given EX-Vault access code 901 | -10/Exiles | Opened EX-Vault 909 | -10/Exiles | Found Supersonic Drone Bay 911 | -10/Exiles | Found Trap Reconfigurator 916 | -10/Exiles | Found YOLO Cannon 938 | -10/Exiles | Warned to stay clear of 0b10 Research branches 966 | -10/Exiles | Met EX-DEC 1024 | -10/Exiles | Discovered new exit (range 11) 1034 | -10/Exiles | Stole three prototypes: Supersonic Drone Bay, Trap Reconfigurator, YOLO Cannon 1034 | -10/Exiles | Entered Mines 1307 | -9/Mines | Discovered new exit (range 12) 1327 | -9/Mines | Entered Materials 1327 | -8/Materials | Evolved 4 slots: Power x1, Propulsion x1, Utility x2 1328 | -8/Materials | Loaded intel: 1 garrison access location 2097 | -8/Materials | Discovered new exit (range 51) 2139 | -8/Materials | Self-destructed Last Messages --------------- 02102_ K-01 Serf collects debris. 02102_ U-05 Engineer lays Concrete. 02102_ O-16 Technician uses terminal to summon reinforcements. 02102_ ALERT: Hostiles spotted, dispatching reinforcements to Terminal M001. 02102_ O-16 Technician locks terminal. 02104_ U-05 Engineer lays Concrete. 02105_ K-01 Serf collects debris. 02106_ U-05 Engineer lays Concrete. 02108_ Purification Channel disabled. 02108_ U-05 Engineer lays Concrete. 02118_ Thief Drone retrieved by Thief Drone Bay. 02118_ U-05 Engineer lays Concrete. 02120_ Thief Drone retrieved by Thief Drone Bay. 02120_ U-05 Engineer lays Concrete. 02124_ U-05 Engineer builds a Wall. 02133_ U-05 Engineer lays Concrete. 02134_ U-05 Engineer builds a Wall. 02135_ U-05 Engineer lays Concrete. 02137_ U-05 Engineer builds a Wall. Map ----- +----------------------------------------------------+ | ??????# #?????????#" + + =*!#???? | | ??????# #?????????# % ! # # / #???? | | ??????# #?????????#"##+# +## # = / #???? | | ??????# ############# [ + =!= #???? | | ??????# %=== +##############???? | | ??????# = #?????????? | | ??????# #?????????? | | ??????# " %#?????????? | | ???#####+##### " #?????????? | | ???# + + """ """ #?????????? | | ???# """"""" ########## # """ """ #?????????? | | ???# %%%%%"" #????????# # """ """ #?????????? | | ##?# %%%%%%" #????????# # ??????????? | | ### %%%%%%" #???????## #########???????????? | | #### %%" #???????#; # #?????????????????? | | ## % #???????#; #;##########????????? | | %# [ [ #???????#; u#; #????????? | | #####/# "###???????#; u#; !=! #????????? | | # #?????????# ; !=! #????????? | | # #?????????# " !! #????????? | | # ##????????# T + #????????? | | # ##???????# # #????????? | | # = = #???????# =# #????????? | | ### %! #???????## ## #????????? | | #####/####=""#????????# ############????????? | | +! #????????# @#???????????????????? | | # #????????# k#???????????????????? | | #% #???????## ##???#######????????? | | ###### !#! #???????# ##### #????????? | | """ # # #???????# #????????? | | """" + + #???????# #????????? | | """" #### #???????# ! #????????? | | """" # " #???????# ##### #????????? | | ?"" ?#### #???????#######???## ##????????? | | ? ????######?????????????????# #?????????? | | ? ????????????????????????????# #?????????? | | ##?????????????????????????????# #?????????? | | ?????????????????????########### % #?????????? | | ?????????????????????# #?????????? | | ?????????????????????# #?????????? | | ?????????????????????# #?????????? | | ?????????????????????# Y#+########?????????? | | ?????????????????????# # """" #???????????? | | ?????????????????????# # """" #???????????? | | ?????????????????????# # """" #???????????? | | ?????????????????????# # ????????????? | | ?????????????????????# # #???????????? | | ?????????????????????# # %#???????????? | | ??????????????????#### #########??????????? | | ?????????????###### ## #?R ???????? | +----------------------------------------------------+ Best States ------------- Heat Dissipation 31 Energy Generation 23 Energy Capacity 760 Matter Stores 300 Matter Capacity 300 Sight Range 16 Terrain Scan Density 10 Evasion (%) 40 Recoil Reduction 3 Item Schematics ----------------- None Robot Schematics ------------------ None Fabricated ------------ Nothing Alien Tech Used ----------------- None Achievements -------------- None Challenges ------------ None Game ------ Seed DerelictTeslaDrive Manual? 0 Play Time 00:14:06 Cumulative 113.4 hours Start 2021.04.03 @ 12:02:07 End 2021.04.03 @ 12:18:05 Sessions 1 Manual Loads 0 Difficulty Rogue Special Mode None Game No. 270 Rogue 117 Adventurer 148 Explorer 5 Win Type - Total 2 Types 2/0/0/0/0/0/0/0/0 Lore% 62 Gallery% 70 Achievement% 55 Wizard Run 0 Options --------- ASCII 0 Keyboard 0 Movement Numpad Keybinds 0 Fullscreen 1 Font 18/CogNarrow Map View 76x50 Tactical HUD 1 Map Filters NONE Filters NONE Steam 1 RUN: 82aa44b8-1c54-4c29-9354-32b2fd92b625